bitfinex-derivatives/quotes_BTCF0:USTF0_20220102
["timestamp","ask_amount","ask_price","bid_price","bid_amount"]
[1641091629058,1.31994819,47385.0,47382.0,0.78142608]
[1641091629660,1.31994819,47385.0,47382.0,0.58942608]
[1641091630260,1.31994819,47385.0,47382.0,0.78142608]
[1641091631662,1.31994819,47385.0,47382.0,0.58942608]
[1641091632261,1.31994819,47385.0,47382.0,0.78142608]
[1641091633163,1.31994819,47385.0,47382.0,1.56500933]
[1641091633563,1.31994819,47385.0,47382.0,0.78142608]
[1641091633763,1.31994819,47385.0,47382.0,0.58942608]
[1641091634264,1.38594819,47385.0,47382.0,0.77942608]
[1641091634864,1.31994819,47384.0,47382.0,0.77942608]
[1641091635666,1.31994819,47384.0,47382.0,0.58942608]
[1641091636268,1.36194819,47384.0,47382.0,0.78042608]
[1641091638271,1.36694819,47384.0,47382.0,0.77942608]
[1641091638872,0.18,47383.0,47382.0,0.77942608]
[1641091639071,0.18,47383.0,47382.0,0.78042608]
[1641091639371,0.20111127,47383.0,47382.0,0.78042608]
[1641091639573,0.20111127,47383.0,47382.0,0.77942608]
[1641091640375,0.39411127,47383.0,47376.0,0.58942608]
[1641091640574,0.18,47378.0,47376.0,0.58942608]
[1641091640972,0.32033567,47378.0,47376.0,0.58942608]
[1641091641171,1.63997873,47378.0,47375.0,1.38229399]
[1641091641773,1.63997873,47378.0,47375.0,0.58942608]
[1641091641975,0.08998641,47377.0,47375.0,0.58942608]
[1641091642173,0.83909453,47376.0,47371.0,0.72976175]
[1641091642372,0.83909453,47376.0,47375.0,0.19]
[1641091643574,0.83909453,47376.0,47371.0,0.72976175]
[1641091643775,0.12,47375.0,47371.0,0.72976175]
[1641091644375,0.12,47375.0,47371.0,0.92076175]
[1641091644376,0.245,47375.0,47371.0,0.92076175]
[1641091644678,0.125,47375.0,47371.0,0.92076175]
[1641091644877,0.35961147,47373.0,47371.0,0.33133567]
[1641091645576,0.35961147,47373.0,47371.0,0.14033567]
[1641091646377,0.35961147,47373.0,47371.0,0.33233567]
[1641091646978,0.35961147,47373.0,47371.0,0.92176175]
[1641091647579,0.35961147,47373.0,47371.0,0.72976175]
[1641091648381,0.35961147,47373.0,47371.0,0.92276175]
[1641091649782,0.35961147,47373.0,47371.0,0.72976175]
[1641091650282,0.35961147,47373.0,47371.0,0.92276175]
[1641091650581,0.35961147,47374.0,47371.0,0.92276175]
[1641091650782,0.35961147,47373.0,47371.0,0.92276175]
[1641091651681,0.35961147,47373.0,47371.0,0.72976175]
[1641091652283,0.35961147,47373.0,47371.0,0.92276175]
[1641091653686,0.35961147,47373.0,47371.0,0.72976175]
[1641091654386,0.35961147,47373.0,47371.0,0.33333567]
[1641091655688,0.35961147,47374.0,47371.0,0.14033567]
[1641091656288,0.35961147,47374.0,47371.0,0.33433567]
[1641091656587,0.35961147,47374.0,47372.0,1.055464]
[1641091658389,0.35961147,47374.0,47372.0,1.249464]
[1641091659592,0.35961147,47373.0,47372.0,1.055464]
[1641091660292,0.35961147,47373.0,47372.0,1.250464]
[1641091661693,0.35961147,47373.0,47371.0,0.72976175]
[1641091662294,0.35961147,47373.0,47371.0,0.92376175]
[1641091662994,0.35961147,47373.0,47372.0,1.055475]
[1641091664293,0.35961147,47373.0,47372.0,1.246475]
[1641091664495,0.35961147,47374.0,47372.0,2.65174078]
[1641091665195,0.35961147,47374.0,47372.0,1.83590108]
[1641091665593,0.35961147,47374.0,47372.0,1.64490108]
[1641091665795,0.35961147,47375.0,47372.0,1.64490108]
[1641091666296,0.35961147,47375.0,47372.0,1.83490108]
[1641091667409,0.35961147,47374.0,47372.0,1.83490108]
[1641091667609,0.35961147,47374.0,47372.0,0.77942608]
[1641091667910,0.35961147,47374.0,47372.0,0.58942608]
[1641091668409,0.35961147,47374.0,47372.0,0.78242608]
[1641091669309,0.35961147,47374.0,47372.0,1.57132395]
[1641091669910,0.35961147,47374.0,47372.0,0.78242608]
[1641091670412,0.35961147,47373.0,47372.0,0.78242608]
[1641091670612,0.35961147,47373.0,47372.0,0.193]
[1641091671613,0.35961147,47373.0,47371.0,0.72976175]
[1641091672414,0.35961147,47373.0,47371.0,0.92376175]
[1641091673314,0.83909453,47376.0,47371.0,0.33433567]
[1641091673516,1.19870647,47374.0,47372.0,1.97515234]
[1641091674215,1.19870647,47374.0,47373.0,0.78978137]
[1641091676418,1.19870647,47374.0,47373.0,0.98378137]
[1641091677021,1.19870647,47375.0,47373.0,2.16915234]
[1641091678421,1.19870647,47375.0,47374.0,0.78978137]
[1641091679123,1.19870647,47375.0,47374.0,1.61814337]
[1641091679830,0.02111509,47375.0,47374.0,0.828362]
[1641091680428,0.27310033,47375.0,47374.0,0.17]
[1641091681831,0.11110033,47375.0,47371.0,0.59238106]
[1641091682226,0.18,47372.0,47371.0,0.59238106]
[1641091682427,0.18,47372.0,47371.0,0.77538106]
[1641091682631,1.40966294,47374.0,47371.0,0.77538106]
[1641091682828,0.18,47372.0,47371.0,0.77538106]
[1641091683431,1.40966294,47374.0,47371.0,0.77538106]
[1641091683833,1.40966294,47374.0,47371.0,0.59238106]
[1641091684432,1.4996777,47374.0,47371.0,0.77638106]
[1641091685232,0.08998524,47373.0,47371.0,0.77638106]
[1641091685832,0.08998524,47373.0,47371.0,0.59238106]
[1641091686334,0.08998524,47373.0,47371.0,0.77738106]
[1641091686335,0.27198524,47373.0,47371.0,0.77738106]
[1641091686633,0.182,47373.0,47371.0,0.77738106]
[1641091687334,0.08998524,47372.0,47371.0,0.77738106]
[1641091687739,0.08998524,47372.0,47371.0,0.59238106]
[1641091688136,1.3196777,47375.0,47371.0,1.37715976]
[1641091688337,0.16,47372.0,47371.0,1.56815976]
[1641091688941,0.24998524,47372.0,47371.0,1.56815976]
[1641091689340,1.44954721,47372.0,47371.0,1.8041407]
[1641091690440,1.28954721,47372.0,47371.0,1.8071407]
[1641091690642,0.08998524,47372.0,47371.0,1.8071407]
[1641091691447,1.19956197,47373.0,47371.0,1.8071407]
[1641091691642,1.19956197,47373.0,47371.0,1.8942407]
[1641091691843,1.19956197,47373.0,47371.0,1.7002407]
[1641091692445,1.19956197,47373.0,47371.0,1.0678787]
[1641091692644,0.08998524,47372.0,47371.0,0.9807787]
[1641091693244,1.19956197,47372.0,47371.0,1.80993604]
[1641091693745,1.19956197,47372.0,47371.0,1.61393604]
[1641091693945,1.19956197,47373.0,47371.0,1.61393604]
[1641091694343,1.19956197,47373.0,47371.0,1.80793604]
[1641091694743,1.19956197,47373.0,47372.0,0.59219533]
[1641091695943,1.19956197,47373.0,47371.0,0.82915734]
[1641091696144,1.19956197,47373.0,47372.0,1.61393604]
[1641091696344,1.31756197,47373.0,47372.0,1.61393604]
[1641091696547,0.118,47373.0,47371.0,0.192]
[1641091696744,0.18,47372.0,47371.0,0.192]
[1641091697645,0.26998524,47372.0,47371.0,0.78448986]
[1641091697847,0.26998524,47372.0,47371.0,0.59248986]
[1641091698045,0.08998524,47372.0,47371.0,0.59248986]
[1641091698247,0.23032091,47372.0,47371.0,0.59248986]
[1641091698447,0.23032091,47372.0,47371.0,1.58242637]
[1641091699054,0.23032091,47372.0,47371.0,0.98993651]
[1641091699252,1.42988947,47372.0,47371.0,1.81909385]
[1641091700454,1.42988947,47372.0,47371.0,1.82009385]
[1641091701672,1.42988947,47372.0,47371.0,1.62709385]
[1641091702371,1.42988947,47372.0,47371.0,1.82109385]
[1641091703970,1.42988947,47372.0,47371.0,1.62709385]
[1641091704471,0.14033567,47372.0,47371.0,0.193]
[1641091705372,0.23032424,47372.0,47371.0,0.99078837]
[1641091706273,1.06981468,47372.0,47371.0,1.58292305]
[1641091706472,1.06981468,47372.0,47371.0,1.65673305]
[1641091706876,0.92947901,47372.0,47371.0,1.65773305]
[1641091707171,1.31983231,47378.0,47371.0,1.868635]
[1641091707370,1.31983231,47378.0,47374.0,0.8]
[1641091707570,1.31983231,47378.0,47376.0,0.12]
[1641091707769,1.31983231,47378.0,47374.0,0.8]
[1641091708371,1.31983231,47378.0,47374.0,0.94033567]
[1641091708571,0.14033567,47389.0,47376.0,0.18]
[1641091708572,1.31983231,47379.0,47376.0,0.18]
[1641091708773,1.31983231,47379.0,47377.0,0.009794]
[1641091708971,1.31983231,47379.0,47377.0,1.382861]
[1641091709574,0.35971133,47378.0,47377.0,1.382861]
[1641091710575,0.35971133,47378.0,47377.0,1.580861]
[1641091710774,0.35971133,47379.0,47377.0,1.72190424]
[1641091710975,1.31983231,47388.0,47378.0,1.0011021]
[1641091711177,1.31983231,47388.0,47386.0,0.18]
[1641091711375,1.31983231,47388.0,47386.0,0.27045]
[1641091711575,1.31983231,47388.0,47386.0,0.09045]
[1641091711775,1.31983231,47388.0,47387.0,0.001]
[1641091712179,1.31983231,47390.0,47387.0,0.001]
[1641091712377,1.31983231,47390.0,47386.0,0.09045]
[1641091712576,1.31983231,47390.0,47387.0,0.196]
[1641091713778,1.31983231,47390.0,47384.0,0.73078965]
[1641091714481,1.50383231,47390.0,47384.0,0.91778965]
[1641091714983,1.31983231,47389.0,47384.0,0.32733567]
[1641091715581,1.31983231,47388.0,47384.0,0.32733567]
[1641091715781,1.31983231,47388.0,47384.0,0.14033567]
[1641091716485,1.31983231,47388.0,47384.0,0.32933567]
[1641091717086,1.31983231,47389.0,47384.0,0.32933567]
[1641091718495,1.46983231,47389.0,47384.0,0.32833567]
[1641091719797,1.46983231,47389.0,47384.0,0.14033567]
[1641091719998,1.31983231,47389.0,47384.0,0.14033567]
[1641091720596,0.18,47387.0,47384.0,0.32833567]
[1641091720797,0.2604,47387.0,47384.0,0.32833567]
[1641091721598,0.0804,47387.0,47384.0,0.32833567]
[1641091721796,1.46683231,47389.0,47384.0,0.32833567]
[1641091721999,1.31983231,47389.0,47384.0,0.14033567]
[1641091722197,1.31983231,47387.0,47384.0,0.14033567]
[1641091722599,1.31983231,47387.0,47384.0,0.32533567]
[1641091722797,0.181,47389.0,47384.0,0.32533567]
[1641091722798,0.0899691,47386.0,47384.0,0.32533567]
[1641091723497,0.0899691,47387.0,47384.0,0.32533567]
[1641091723898,0.0899691,47387.0,47384.0,0.14033567]
[1641091724498,0.0899691,47387.0,47384.0,0.33033567]
[1641091724698,0.0899691,47387.0,47384.0,0.92078965]
[1641091724699,1.31983231,47385.0,47384.0,0.92078965]
[1641091726003,1.31983231,47385.0,47384.0,0.73078965]
[1641091726604,1.31983231,47385.0,47384.0,0.92278965]
[1641091726804,0.59892501,47386.0,47384.0,0.33233567]
[1641091727519,0.3593505,47385.0,47384.0,0.33233567]
[1641091727920,0.3593505,47385.0,47384.0,0.14033567]
[1641091728521,0.3593505,47385.0,47384.0,0.33233567]
[1641091729323,0.3593505,47386.0,47384.0,0.33233567]
[1641091729924,0.3593505,47386.0,47384.0,0.14033567]
[1641091730826,0.3593505,47386.0,47384.0,0.33133567]
[1641091731827,0.3593505,47386.0,47384.0,0.14033567]
[1641091732427,0.59892501,47388.0,47384.0,0.14033567]
[1641091732428,0.3593505,47387.0,47384.0,0.14033567]
[1641091732627,0.3593505,47387.0,47384.0,0.33033567]
[1641091732829,0.59892501,47388.0,47384.0,0.33033567]
[1641091732830,0.3593505,47386.0,47384.0,0.33033567]
[1641091733831,0.3593505,47386.0,47384.0,0.14033567]
[1641091734532,0.4389405,47386.0,47384.0,0.33133567]
[1641091736042,0.4389405,47386.0,47384.0,0.14033567]
[1641091736634,0.4389405,47386.0,47384.0,0.33133567]
[1641091737235,0.3593505,47385.0,47384.0,0.33133567]
[1641091738036,0.3593505,47385.0,47384.0,0.14033567]
[1641091738535,0.3593505,47385.0,47384.0,0.33233567]
[1641091739939,0.3593505,47385.0,47384.0,0.14033567]
[1641091740540,0.3593505,47385.0,47384.0,0.32933567]
[1641091741640,0.3593505,47385.0,47384.0,0.189]
[1641091741843,0.3593505,47385.0,47379.0,0.82110455]
[1641091742040,0.3593505,47385.0,47377.0,0.59045398]
[1641091742540,0.5503505,47385.0,47377.0,0.59045398]
[1641091742744,0.14033567,47380.0,47376.0,0.0211059]
[1641091742940,0.14033567,47380.0,47373.0,0.59045398]
[1641091743440,0.18,47377.0,47373.0,0.59045398]
[1641091743846,0.32033567,47380.0,47373.0,0.59045398]
[1641091744248,0.32033567,47380.0,47372.0,0.59045398]
[1641091744249,0.67968617,47380.0,47372.0,0.59045398]
[1641091744648,0.86968617,47380.0,47372.0,0.59045398]
[1641091744847,0.18,47379.0,47372.0,0.59045398]
[1641091745450,0.3593505,47376.0,47369.0,0.14033567]
[1641091745751,0.4243005,47376.0,47369.0,0.14033567]
[1641091746150,0.4243005,47376.0,47370.0,1.055464]
[1641091746651,0.3593505,47374.0,47370.0,2.58495292]
[1641091747551,0.3593505,47375.0,47371.0,1.52948892]
[1641091748554,0.4953505,47375.0,47371.0,1.52948892]
[1641091749553,0.4953505,47375.0,47371.0,0.59045398]
[1641091749755,0.3593505,47373.0,47371.0,0.59045398]
[1641091749954,0.3593505,47373.0,47369.0,0.73078965]
[1641091750356,0.3593505,47374.0,47369.0,0.73078965]
[1641091750555,0.184,47373.0,47370.0,1.055498]
[1641091752057,0.3593505,47375.0,47370.0,1.64595198]
[1641091752657,0.5513505,47375.0,47370.0,1.64595198]
[1641091752861,0.3593505,47373.0,47371.0,0.93881642]
[1641091753156,0.3593505,47373.0,47371.0,1.5292704]
[1641091754158,0.3593505,47373.0,47369.0,0.96679187]
[1641091754159,0.18,47383.0,47369.0,0.14033567]
[1641091754758,0.32733567,47380.0,47370.0,1.05542]
[1641091755657,0.18,47378.0,47370.0,1.05542]
[1641091755859,0.14033567,47380.0,47370.0,1.05542]
[1641091756758,0.32633567,47380.0,47370.0,1.05542]
[1641091757960,0.14033567,47380.0,47370.0,1.05542]
[1641091758461,0.14033567,47380.0,47371.0,0.18]
[1641091758662,0.33033567,47380.0,47371.0,0.18]
[1641091758864,0.33033567,47380.0,47372.0,1.055397]
[1641091759263,0.33033567,47380.0,47370.0,1.055408]
[1641091759462,0.35961977,47376.0,47373.0,1.76676849]
[1641091759663,0.35961977,47376.0,47375.0,0.59068479]
[1641091759863,0.59936628,47377.0,47375.0,0.59068479]
[1641091760663,0.77436628,47377.0,47375.0,0.59068479]
[1641091762074,0.59936628,47377.0,47375.0,0.59068479]
[1641091762673,0.68936628,47377.0,47375.0,0.59068479]
[1641091763978,0.59936628,47377.0,47375.0,0.59068479]
[1641091764774,0.66336628,47377.0,47375.0,0.59068479]
[1641091765175,0.35965968,47376.0,47374.0,0.82695871]
[1641091766679,0.37565968,47376.0,47374.0,0.82695871]
[1641091766878,0.35965968,47375.0,47374.0,0.82695871]
[1641091767578,0.016,47376.0,47369.0,0.14033567]
[1641091767778,0.016,47376.0,47369.0,0.32033567]
[1641091767980,0.14033567,47380.0,47369.0,0.32033567]
[1641091768180,0.35969099,47375.0,47373.0,0.82720893]
[1641091770178,0.35969099,47375.0,47373.0,1.62720893]
[1641091771782,0.59948498,47377.0,47373.0,0.8]
[1641091772079,0.59948498,47376.0,47373.0,0.8]
[1641091772681,0.59948498,47376.0,47375.0,1.18195499]
[1641091774679,0.70048498,47376.0,47375.0,1.18195499]
[1641091775080,0.101,47376.0,47375.0,1.18195499]
[1641091775480,0.101,47376.0,47374.0,1.18195499]
[1641091776080,0.83927898,47377.0,47374.0,1.18195499]
[1641091776479,0.59963166,47375.0,47374.0,1.18195499]
[1641091777182,0.59963166,47376.0,47374.0,1.18195499]
[1641091778180,0.83927898,47376.0,47375.0,0.82754141]
[1641091778783,0.85527898,47376.0,47375.0,0.82754141]
[1641091779481,0.85527898,47376.0,47373.0,1.98195499]
[1641091779683,0.016,47376.0,47374.0,1.18195499]
[1641091779981,0.85527898,47376.0,47375.0,0.82754975]
[1641091780179,0.83927898,47376.0,47375.0,0.82754975]
[1641091781582,0.83927898,47377.0,47374.0,2.14175402]
[1641091782785,0.98227898,47377.0,47374.0,2.14175402]
[1641091783187,0.98227898,47377.0,47376.0,0.82740107]
[1641091783785,0.143,47377.0,47376.0,0.82740107]
[1641091783987,1.19896997,47379.0,47374.0,2.14175402]
[1641091783988,1.19896997,47378.0,47375.0,0.82740107]
[1641091784485,0.83950792,47376.0,47375.0,0.82740107]
[1641091786787,0.92950792,47376.0,47375.0,0.82740107]
[1641091787990,0.83950792,47376.0,47375.0,0.82740107]
[1641091789019,0.83950792,47376.0,47374.0,0.95979903]
[1641091789194,0.83950792,47377.0,47374.0,2.14175402]
[1641091789696,0.83950792,47377.0,47376.0,0.82755563]
[1641091790694,0.99750792,47377.0,47376.0,0.82755563]
[1641091792095,0.83950792,47377.0,47376.0,0.82755563]
[1641091793000,0.83950792,47377.0,47374.0,2.14175402]
[1641091793399,0.83950792,47378.0,47375.0,1.18195499]
[1641091794200,0.83950792,47378.0,47376.0,1.78722812]
[1641091794700,1.00150792,47378.0,47376.0,1.78722812]
[1641091795402,0.83950792,47377.0,47376.0,1.78722812]
[1641091796002,0.83950792,47377.0,47376.0,0.82742909]
[1641091796803,1.00050792,47377.0,47376.0,0.82742909]
[1641091798209,0.83950792,47377.0,47376.0,0.82742909]
[1641091799404,0.83950792,47377.0,47374.0,2.14175402]
[1641091799605,0.83950792,47378.0,47375.0,1.18195499]
[1641091800504,0.83950792,47378.0,47377.0,0.82741935]
[1641091800809,0.99950792,47378.0,47377.0,0.82741935]
[1641091801007,0.16,47378.0,47377.0,0.82741935]
[1641091801706,0.16,47378.0,47374.0,2.14175402]
[1641091801906,0.16,47378.0,47377.0,1.18195499]
[1641091802106,1.19896997,47379.0,47377.0,1.18195499]
[1641091802607,1.19896997,47379.0,47376.0,1.18195499]
[1641091802807,1.36596997,47379.0,47376.0,1.18195499]
[1641091803609,1.43690997,47379.0,47376.0,1.18195499]
[1641091803808,1.43690997,47379.0,47377.0,1.18195499]
[1641091804011,1.61690997,47379.0,47377.0,1.18195499]
[1641091804209,0.14033567,47378.0,47377.0,1.18195499]
[1641091804909,0.14033567,47378.0,47376.0,0.59058957]
[1641091804910,0.33133567,47378.0,47376.0,0.59058957]
[1641091806016,0.14033567,47378.0,47376.0,0.59058957]
[1641091806311,1.45920263,47378.0,47376.0,0.59058957]
[1641091806509,1.45920263,47378.0,47375.0,0.59058957]
[1641091806810,1.64920263,47378.0,47375.0,0.59058957]
[1641091807010,1.31886696,47377.0,47375.0,0.59058957]
[1641091807612,0.18,47376.0,47375.0,0.59058957]
[1641091808813,0.37,47376.0,47375.0,0.59058957]
[1641091809014,0.19,47376.0,47375.0,0.59058957]
[1641091810213,1.31886696,47377.0,47375.0,0.59058957]
[1641091810814,1.50786696,47377.0,47375.0,0.59058957]
[1641091811615,1.59785611,47377.0,47375.0,0.59058957]
[1641091812114,1.40885611,47377.0,47375.0,0.59058957]
[1641091812315,1.31886696,47377.0,47375.0,0.59058957]
[1641091812815,1.50586696,47377.0,47375.0,0.59058957]
[1641091813017,1.31886696,47376.0,47375.0,0.59058957]
[1641091813216,1.31886696,47376.0,47374.0,0.59058957]
[1641091814422,1.50586696,47377.0,47375.0,0.59058957]
[1641091814622,1.31886696,47377.0,47375.0,0.59058957]
[1641091814822,0.189,47376.0,47375.0,0.59058957]
[1641091815325,1.50786696,47376.0,47374.0,0.59058957]
[1641091816124,1.31886696,47376.0,47374.0,0.59058957]
[1641091816827,0.19,47376.0,47375.0,0.59058957]
[1641091818243,1.31886696,47377.0,47375.0,0.59058957]
[1641091818845,1.50586696,47377.0,47375.0,0.59058957]
[1641091819045,1.31886696,47376.0,47375.0,0.59058957]
[1641091819746,1.31886696,47376.0,47374.0,0.8268254]
[1641091819945,1.50586696,47377.0,47374.0,0.8268254]
[1641091820345,1.31886696,47377.0,47374.0,0.8268254]
[1641091820545,1.31886696,47377.0,47376.0,0.59218568]
[1641091820845,1.50986696,47377.0,47376.0,0.59218568]
[1641091821749,1.50986696,47377.0,47375.0,0.8268254]
[1641091821948,0.191,47377.0,47375.0,0.8268254]
[1641091822146,1.45920263,47378.0,47375.0,0.8268254]
[1641091822748,0.14033567,47378.0,47376.0,0.8268254]
[1641091822951,0.32733567,47378.0,47376.0,0.9098354]
[1641091824147,0.14033567,47378.0,47376.0,0.9098354]
[1641091824648,0.14033567,47378.0,47377.0,1.77257092]
[1641091824847,0.33033567,47378.0,47377.0,1.77257092]
[1641091825247,0.33033567,47378.0,47377.0,0.94574552]
[1641091826047,1.64920263,47378.0,47377.0,0.59158178]
[1641091828353,1.63920263,47378.0,47377.0,0.59158178]
[1641091828749,1.45920263,47378.0,47377.0,0.59158178]
[1641091829048,1.64920263,47378.0,47377.0,0.59158178]
[1641091830250,1.45920263,47378.0,47377.0,0.59158178]
[1641091830951,1.64820263,47378.0,47377.0,0.59158178]
[1641091831654,1.64820263,47378.0,47375.0,0.8268254]
[1641091831853,1.64820263,47378.0,47370.0,1.29989975]
[1641091831854,0.32933567,47378.0,47376.0,0.8268254]
[1641091832356,0.14033567,47378.0,47376.0,0.8268254]
[1641091832953,0.32933567,47378.0,47376.0,0.8877054]
[1641091833153,1.64820263,47378.0,47377.0,0.5902455]
[1641091833856,1.50786696,47378.0,47377.0,0.5902455]
[1641091834060,0.50484795,47380.0,47377.0,0.03089915]
[1641091834256,0.50484795,47380.0,47379.0,0.98]
[1641091834457,0.50484795,47380.0,47379.0,0.8]
[1641091834657,0.50484795,47380.0,47379.0,0.98]
[1641091834863,0.50484795,47380.0,47379.0,1.13833567]
[1641091835159,1.43876396,47384.0,47379.0,1.13833567]
[1641091835459,1.43876396,47391.0,47383.0,0.001]
[1641091835668,0.59962271,47380.0,47379.0,3.39893207]
[1641091835857,0.59962271,47380.0,47379.0,3.27999433]
[1641091836359,0.59962271,47380.0,47379.0,3.38293024]
[1641091836560,0.59962271,47380.0,47379.0,2.20097525]
[1641091836963,0.59962271,47380.0,47379.0,2.39497525]
[1641091837162,0.59962271,47382.0,47379.0,2.39497525]
[1641091837365,0.59962271,47382.0,47381.0,0.181]
[1641091837764,0.59962271,47384.0,47381.0,0.181]
[1641091837965,0.59962271,47384.0,47383.0,0.001]
[1641091838664,0.59962271,47385.0,47383.0,0.001]
[1641091838864,0.59962271,47385.0,47384.0,0.001]
[1641091839069,0.77962271,47385.0,47384.0,0.001]
[1641091839264,1.19924543,47388.0,47384.0,0.96070367]
[1641091839565,1.19924543,47388.0,47384.0,0.95970367]
[1641091839967,0.18,47389.0,47384.0,0.95970367]
[1641091840165,0.32033567,47392.0,47384.0,0.95970367]
[1641091840465,1.43876396,47391.0,47383.0,1.17656384]
[1641091840666,1.43876396,47391.0,47383.0,0.58881176]
[1641091840863,0.18,47389.0,47383.0,0.77381176]
[1641091841667,1.19920583,47384.0,47383.0,0.185]
[1641091841864,1.19920583,47384.0,47383.0,0.186]
[1641091842165,1.19920583,47384.0,47383.0,0.001]
[1641091842567,1.31912641,47387.0,47383.0,0.001]
[1641091842767,1.31912641,47385.0,47383.0,1.78404014]
[1641091842967,1.31912641,47385.0,47384.0,0.001]
[1641091843166,1.31912641,47385.0,47384.0,0.59006209]
[1641091843865,1.31912641,47385.0,47384.0,0.001]
[1641091844068,1.31912641,47387.0,47384.0,1.78504014]
[1641091844267,1.31912641,47387.0,47386.0,0.001]
[1641091844867,1.31912641,47387.0,47386.0,0.194]
[1641091845270,1.43876396,47390.0,47386.0,0.194]
[1641091845467,1.43876396,47390.0,47386.0,0.193]
[1641091846267,1.43876396,47391.0,47386.0,0.193]
[1641091846468,1.31948238,47387.0,47386.0,0.78186588]
[1641091846667,1.31948238,47387.0,47386.0,0.78286588]
[1641091846869,1.31948238,47387.0,47386.0,0.58986588]
[1641091847166,1.31948238,47387.0,47386.0,1.7424871]
[1641091847873,1.31948238,47388.0,47386.0,1.7424871]
[1641091848070,1.31948238,47388.0,47386.0,1.7414871]
[1641091848270,1.31948238,47388.0,47386.0,1.5484871]
[1641091848670,1.31948238,47388.0,47387.0,0.95962122]
[1641091848870,1.31948238,47388.0,47387.0,1.5484871]
[1641091850974,1.31948238,47388.0,47387.0,1.7404871]
[1641091852476,1.31948238,47388.0,47387.0,1.5484871]
[1641091852979,1.31948238,47388.0,47387.0,1.7374871]
[1641091854076,0.07117,47388.0,47387.0,0.77786588]
[1641091854276,0.07117,47388.0,47385.0,0.58886588]
[1641091854876,1.50993396,47388.0,47384.0,0.58886588]
[1641091855077,0.14033567,47386.0,47385.0,0.188]
[1641091855277,0.14033567,47386.0,47385.0,0.189]
[1641091855686,0.32033567,47386.0,47385.0,0.189]
[1641091856379,0.32033567,47386.0,47385.0,0.001]
[1641091857081,0.50333567,47386.0,47385.0,0.186]
[1641091857282,0.50333567,47386.0,47378.0,0.58886588]
[1641091857585,0.18,47380.0,47378.0,0.58886588]
[1641091858184,0.18,47380.0,47375.0,0.58886588]
[1641091858185,0.83917136,47379.0,47375.0,0.58886588]
[1641091859086,0.59942975,47376.0,47373.0,0.58886588]
[1641091859887,0.59942975,47376.0,47374.0,0.58886588]
[1641091860486,0.59942975,47376.0,47373.0,0.58886588]
[1641091860988,0.78642975,47376.0,47373.0,0.58886588]
[1641091861188,0.59942975,47375.0,47373.0,0.58886588]
[1641091861990,0.59942975,47375.0,47372.0,1.54870121]
[1641091863089,0.79342975,47375.0,47372.0,1.54870121]
[1641091863697,0.59942975,47374.0,47373.0,0.58886588]
[1641091864296,0.59942975,47375.0,47373.0,0.58886588]
[1641091864998,0.79342975,47375.0,47373.0,0.58886588]
[1641091866303,0.59942975,47375.0,47373.0,0.58886588]
[1641091867106,0.79342975,47375.0,47373.0,0.58886588]
[1641091867908,0.59942975,47374.0,47373.0,0.58886588]
[1641091869107,0.78742975,47374.0,47373.0,0.58886588]
[1641091869508,0.188,47374.0,47373.0,0.58886588]
[1641091869710,0.188,47374.0,47372.0,0.58886588]
[1641091870312,0.83917136,47375.0,47372.0,0.58886588]
[1641091870510,0.59949475,47374.0,47372.0,0.58886588]
[1641091871009,0.78549475,47374.0,47372.0,0.58886588]
[1641091872111,0.186,47374.0,47373.0,0.58886588]
[1641091872611,0.59949475,47375.0,47373.0,0.58886588]
[1641091873011,0.187,47374.0,47373.0,0.58886588]
[1641091873611,0.187,47374.0,47372.0,0.82433647]
[1641091874413,0.59949475,47375.0,47372.0,0.82433647]
[1641091875012,0.78549475,47375.0,47372.0,0.82433647]
[1641091876514,0.59949475,47375.0,47372.0,0.82433647]
[1641091877021,0.78649475,47375.0,47372.0,0.82433647]
[1641091878017,0.59949475,47374.0,47371.0,1.7841718]
[1641091878917,1.3391519,47378.0,47367.0,0.14033567]
[1641091878918,0.59949475,47375.0,47370.0,0.82433647]
[1641091879123,0.188,47374.0,47370.0,0.82433647]
[1641091880321,0.59949475,47375.0,47370.0,0.82433647]
[1641091881022,0.78749475,47375.0,47370.0,0.82433647]
[1641091881223,0.188,47375.0,47370.0,0.82433647]
[1641091882428,0.59949475,47376.0,47370.0,0.82433647]
[1641091883026,0.78749475,47376.0,47370.0,0.82433647]
[1641091883926,0.59949475,47375.0,47370.0,0.82433647]
[1641091884627,0.59949475,47376.0,47370.0,0.82433647]
[1641091885030,0.176,47375.0,47370.0,0.82433647]
[1641091885327,0.176,47375.0,47372.0,0.18]
[1641091885629,0.176,47375.0,47373.0,0.8]
[1641091885828,0.176,47375.0,47373.0,0.809794]
[1641091886128,0.176,47375.0,47374.0,0.02110616]
[1641091886329,0.59949475,47377.0,47373.0,2.183763]
[1641091886528,0.59949475,47377.0,47376.0,0.18]
[1641091886930,0.59949475,47381.0,47376.0,0.18]
[1641091887830,0.59949475,47381.0,47379.0,0.82440323]
[1641091888031,0.59949475,47382.0,47379.0,0.82440323]
[1641091889031,0.76849475,47382.0,47379.0,0.82440323]
[1641091889433,0.76849475,47382.0,47381.0,0.58884963]
[1641091890436,0.59949475,47382.0,47381.0,0.58884963]
[1641091890835,0.59949475,47382.0,47381.0,1.57864363]
[1641091891836,0.59949475,47382.0,47381.0,1.7189793]
[1641091892036,0.41449475,47382.0,47381.0,2.03570691]
[1641091892255,0.07039475,47382.0,47381.0,1.46795969]
[1641091892436,0.07039475,47385.0,47381.0,3.80057802]
[1641091892636,0.07039475,47385.0,47384.0,0.181]
[1641091892838,0.07039475,47385.0,47384.0,0.23932]
[1641091893038,0.83917136,47387.0,47384.0,0.557643]
[1641091893237,1.58611251,47396.0,47386.0,0.001]
[1641091893238,0.83917136,47388.0,47386.0,0.001]
[1641091893437,0.83917136,47388.0,47387.0,0.8]
[1641091893638,0.83917136,47388.0,47387.0,1.114821]
[1641091893840,0.83917136,47388.0,47387.0,1.25515667]
[1641091894438,0.83917136,47388.0,47387.0,1.25615667]
[1641091894738,0.83917136,47388.0,47387.0,1.28705146]
[1641091895538,0.83917136,47390.0,47387.0,3.30171536]
[1641091895738,0.83917136,47390.0,47389.0,0.18]
[1641091896238,1.19881623,47392.0,47389.0,1.00358473]
[1641091896438,0.83917136,47393.0,47389.0,1.02468367]
[1641091897039,1.02217136,47393.0,47389.0,1.02468367]
[1641091897238,0.183,47393.0,47390.0,1.78311863]
[1641091897947,0.183,47393.0,47392.0,0.18]
[1641091898446,0.83917136,47394.0,47392.0,0.18]
[1641091899147,0.183,47394.0,47392.0,0.9595339]
[1641091899549,0.183,47394.0,47392.0,1.0195339]
[1641091899757,0.183,47394.0,47391.0,0.9595339]
[1641091900259,0.83917136,47395.0,47391.0,0.9595339]
[1641091901061,1.01517136,47395.0,47393.0,0.18]